[Event "*** Monthly 3|2 Blitz Masters"]
[Site "Chess.com"]
[Date "2014.11.25"]
[Round "4"]
[White "IMRosen"]
[Black "gumersindo"]
[Result "1/2-1/2"]
[WhiteElo "1982"]
[BlackElo "2045"]
[TimeControl "180+2"]
[EndTime "11:46:59 PST"]
[Termination "Game drawn by repetition"]

1. c4 {[%clk 0:02:59.8]} 1... c6 {[%clk 0:02:55.9]} 2. Nc3 {[%clk 0:03:00.8]}
2... d5 {[%clk 0:02:56.8]} 3. e3 {[%clk 0:03:02.3]} 3... Nf6 {[%clk 0:02:57.3]}
4. Nf3 {[%clk 0:03:02.8]} 4... g6 {[%clk 0:02:58.4]} 5. Qa4 {[%clk 0:03:02.8]}
5... Bd7 {[%clk 0:02:53.7]} 6. Qb3 {[%clk 0:03:03]} 6... Bc8 {[%clk 0:02:51.8]}
7. d4 {[%clk 0:02:54.2]} 7... Bg7 {[%clk 0:02:50.7]} 8. cxd5 {[%clk 0:02:55.7]}
8... cxd5 {[%clk 0:02:51.2]} 9. Bb5+ {[%clk 0:02:57.3]} 9... Nc6 {[%clk
0:02:50.2]} 10. Ne5 {[%clk 0:02:58.7]} 10... O-O {[%clk 0:02:47.4]} 11. Nxc6
{[%clk 0:02:52.1]} 11... bxc6 {[%clk 0:02:45]} 12. Bxc6 {[%clk 0:02:54]} 12...
Ba6 {[%clk 0:02:44.2]} 13. Bxa8 {[%clk 0:02:54.8]} 13... Qxa8 {[%clk 0:02:44.6]}
14. Qa3 {[%clk 0:02:52.1]} 14... Qb7 {[%clk 0:02:42.6]} 15. f3 {[%clk 0:02:38]}
15... Re8 {[%clk 0:02:40.6]} 16. Qb3 {[%clk 0:02:36.5]} 16... Qd7 {[%clk
0:02:37.3]} 17. Qa4 {[%clk 0:02:20.3]} 17... Qb7 {[%clk 0:02:31.6]} 18. Nxd5
{[%clk 0:02:13.4]} 18... Qxd5 {[%clk 0:02:30.6]} 19. Qxa6 {[%clk 0:02:13.8]}
19... e5 {[%clk 0:02:32.1]} 20. dxe5 {[%clk 0:02:07.9]} 20... Rxe5 {[%clk
0:02:26.9]} 21. O-O {[%clk 0:02:03.4]} 21... Bf8 {[%clk 0:02:16.6]} 22. Qc8
{[%clk 0:01:48.6]} 22... Re8 {[%clk 0:02:14.4]} 23. Qc3 {[%clk 0:01:45.5]} 23...
Bg7 {[%clk 0:02:14]} 24. Qb3 {[%clk 0:01:44.3]} 24... Qd6 {[%clk 0:02:03.3]} 25.
e4 {[%clk 0:01:42.9]} 25... Nh5 {[%clk 0:01:55.5]} 26. Be3 {[%clk 0:01:40.9]}
26... Be5 {[%clk 0:01:51.7]} 27. f4 {[%clk 0:01:21]} 27... Nxf4 {[%clk 0:01:47]}
28. Bxf4 {[%clk 0:01:22.9]} 28... Bxf4 {[%clk 0:01:46.4]} 29. g3 {[%clk
0:01:03.8]} 29... Qd4+ {[%clk 0:01:41.6]} 30. Rf2 {[%clk 0:00:57.1]} 30... Rb8
{[%clk 0:01:36]} 31. Qf3 {[%clk 0:00:31.4]} 31... Be3 {[%clk 0:01:23.9]} 32.
Qxf7+ {[%clk 0:00:29.1]} 32... Kh8 {[%clk 0:01:24.3]} 33. Rf1 {[%clk 0:00:26.8]}
33... Bxf2+ {[%clk 0:01:18.2]} 34. Qxf2 {[%clk 0:00:25.3]} 34... Qxb2 {[%clk
0:01:15.9]} 35. Qxa7 {[%clk 0:00:21.4]} 35... Rb7 {[%clk 0:01:06.8]} 36. Qa8+
{[%clk 0:00:19.3]} 36... Rb8 {[%clk 0:01:04.6]} 37. Qd5 {[%clk 0:00:20.5]} 37...
Qb6+ {[%clk 0:01:02.3]} 38. Rf2 {[%clk 0:00:20.1]} 38... Rf8 {[%clk 0:00:59.2]}
39. Qe5+ {[%clk 0:00:20.3]} 39... Kg8 {[%clk 0:01:00.2]} 40. Qd5+ {[%clk
0:00:21.6]} 40... Kh8 {[%clk 0:00:58.3]} 41. Qd2 {[%clk 0:00:22.9]} 41... Rxf2
{[%clk 0:00:53.8]} 42. Qxf2 {[%clk 0:00:23.3]} 42... Qb1+ {[%clk 0:00:55]} 43.
Kg2 {[%clk 0:00:24.4]} 43... Qxe4+ {[%clk 0:00:55.9]} 44. Kg1 {[%clk 0:00:24.5]}
44... Qb1+ {[%clk 0:00:56.7]} 45. Qf1 {[%clk 0:00:24.2]} 45... Qxa2 {[%clk
0:00:56.7]} 46. Qf8+ {[%clk 0:00:23.8]} 46... Qg8 {[%clk 0:00:56.1]} 47. Qf6+
{[%clk 0:00:24.8]} 47... Qg7 {[%clk 0:00:57.3]} 48. Qd8+ {[%clk 0:00:26.4]}
48... Qg8 {[%clk 0:00:58.3]} 49. Qd4+ {[%clk 0:00:28]} 49... Qg7 {[%clk
0:00:59.5]} 50. Qd8+ {[%clk 0:00:28]} 50... Qg8 {[%clk 0:01:00.4]} 51. Qf6+
{[%clk 0:00:29.3]} 51... Qg7 {[%clk 0:01:01.4]} 52. Qf4 {[%clk 0:00:30.6]} 52...
Qa7+ {[%clk 0:01:00.5]} 53. Kg2 {[%clk 0:00:31.2]} 53... Qb7+ {[%clk 0:01:01.1]}
54. Kh3 {[%clk 0:00:32.4]} 54... Kg8 {[%clk 0:01:00.1]} 55. Qc4+ {[%clk
0:00:32.5]} 55... Qf7 {[%clk 0:01:00]} 56. Qc8+ {[%clk 0:00:32.9]} 56... Kg7
{[%clk 0:01:00.8]} 57. Qc3+ {[%clk 0:00:31.9]} 57... Qf6 {[%clk 0:01:01.8]} 58.
Qc7+ {[%clk 0:00:31.9]} 58... Qf7 {[%clk 0:01:02.9]} 59. Qe5+ {[%clk 0:00:33.4]}
59... Qf6 {[%clk 0:01:04.2]} 60. Qc7+ {[%clk 0:00:34.8]} 60... Qf7 {[%clk
0:01:05.3]} 61. Qc8 {[%clk 0:00:33.5]} 61... Qe7 {[%clk 0:01:02.4]} 62. Qg4
{[%clk 0:00:32.3]} 62... h5 {[%clk 0:01:00.1]} 63. Qd4+ {[%clk 0:00:33.3]} 63...
Qf6 {[%clk 0:01:00]} 64. Qd7+ {[%clk 0:00:33.9]} 64... Qf7 {[%clk 0:01:00.7]}
65. Qd4+ {[%clk 0:00:35.2]} 65... Qf6 {[%clk 0:01:01.7]} 66. Qc4 {[%clk
0:00:33.9]} 66... Qf5+ {[%clk 0:01:01.8]} 67. Kg2 {[%clk 0:00:35.1]} 67... Qf6
{[%clk 0:01:01.9]} 68. Qc7+ {[%clk 0:00:34.1]} 68... Qf7 {[%clk 0:01:02.8]} 69.
Qe5+ {[%clk 0:00:35.7]} 69... Qf6 {[%clk 0:01:03.9]} 70. Qe4 {[%clk 0:00:37]}
70... Qf7 {[%clk 0:01:03.9]} 71. Qd4+ {[%clk 0:00:35.4]} 71... Qf6 {[%clk
0:01:05]} 72. Qd7+ {[%clk 0:00:35.3]} 72... Qf7 {[%clk 0:01:06.2]} 73. Qd4+
{[%clk 0:00:35.5]} 73... Qf6 {[%clk 0:01:07.3]} 74. Qe3 {[%clk 0:00:36.9]} 74...
Qf7 {[%clk 0:01:07.8]} 75. Qc3+ {[%clk 0:00:37.2]} 75... Qf6 {[%clk 0:01:08.8]}
76. Qc7+ {[%clk 0:00:37.9]} 76... Qf7 {[%clk 0:01:09.9]} 77. Qc6 {[%clk
0:00:38.9]} 77... Qf6 {[%clk 0:01:10.4]} 78. Qe4 {[%clk 0:00:38.3]} 78... Qf7
{[%clk 0:01:11.1]} 79. h3 {[%clk 0:00:39.8]} 79... Qf6 {[%clk 0:01:12]} 80. g4
{[%clk 0:00:38.7]} 80... hxg4 {[%clk 0:01:11.9]} 81. hxg4 {[%clk 0:00:40.4]}
81... Qb2+ {[%clk 0:01:11.8]} 82. Kg3 {[%clk 0:00:40.4]} 82... Qc3+ {[%clk
0:01:12.4]} 83. Kh4 {[%clk 0:00:35.1]} 83... Qf6+ {[%clk 0:01:11.9]} 84. Kg3
{[%clk 0:00:31.6]} 84... Qc3+ {[%clk 0:01:12]} 85. Kg2 {[%clk 0:00:33]} 85...
Qd2+ {[%clk 0:01:12.4]} 86. Kg3 {[%clk 0:00:34.2]} 86... Qc3+ {[%clk 0:01:13.1]}
1/2-1/2

[Event "*** Monthly 3|2 Blitz Masters"]
[Site "Chess.com"]
[Date "2014.11.25"]
[Round "4"]
[White "Baggio95"]
[Black "GulamaliRises"]
[Result "1/2-1/2"]
[WhiteElo "2366"]
[BlackElo "2416"]
[TimeControl "180+2"]
[EndTime "11:47:24 PST"]
[Termination "Game drawn - insufficient material"]

1. e4 {[%clk 0:02:56.8]} 1... c5 {[%clk 0:02:58.8]} 2. Nf3 {[%clk 0:02:57.8]}
2... d6 {[%clk 0:03:00.4]} 3. d4 {[%clk 0:02:59.4]} 3... cxd4 {[%clk 0:03:02.3]}
4. Nxd4 {[%clk 0:03:01.1]} 4... Nf6 {[%clk 0:03:03.1]} 5. Nc3 {[%clk 0:03:02.8]}
5... a6 {[%clk 0:03:04.6]} 6. Bg5 {[%clk 0:03:03.9]} 6... Nbd7 {[%clk
0:03:03.5]} 7. Bc4 {[%clk 0:03:04.4]} 7... Qa5 {[%clk 0:03:02.2]} 8. Qd2 {[%clk
0:03:02.1]} 8... h6 {[%clk 0:02:58.9]} 9. Bh4 {[%clk 0:02:54.8]} 9... g6 {[%clk
0:02:55.9]} 10. O-O {[%clk 0:02:45.9]} 10... Bg7 {[%clk 0:02:54.6]} 11. Nb3
{[%clk 0:02:44.2]} 11... Qc7 {[%clk 0:02:55.2]} 12. Bd3 {[%clk 0:02:40.7]} 12...
e5 {[%clk 0:02:40.6]} 13. f4 {[%clk 0:02:30.4]} 13... exf4 {[%clk 0:02:41.4]}
14. Bxf6 {[%clk 0:02:31.1]} 14... Nxf6 {[%clk 0:02:40.9]} 15. Qxf4 {[%clk
0:02:32]} 15... O-O {[%clk 0:02:32.9]} 16. Rad1 {[%clk 0:02:31.9]} 16... Be6
{[%clk 0:02:32.4]} 17. Kh1 {[%clk 0:02:27.1]} 17... Ng4 {[%clk 0:02:27]} 18. h3
{[%clk 0:02:09.4]} 18... Ne5 {[%clk 0:02:25.6]} 19. Qf2 {[%clk 0:02:05.1]} 19...
b5 {[%clk 0:02:06.5]} 20. Nd4 {[%clk 0:02:03]} 20... b4 {[%clk 0:02:06.1]} 21.
Nd5 {[%clk 0:02:01.4]} 21... Bxd5 {[%clk 0:02:05.1]} 22. exd5 {[%clk 0:02:01.9]}
22... Qc5 {[%clk 0:02:01.4]} 23. Be4 {[%clk 0:01:56.8]} 23... f5 {[%clk
0:01:59.5]} 24. Bf3 {[%clk 0:01:39.8]} 24... Nxf3 {[%clk 0:02:00]} 25. gxf3
{[%clk 0:01:40.7]} 25... Qxd5 {[%clk 0:01:56.6]} 26. Nb3 {[%clk 0:01:30.8]}
26... Qc6 {[%clk 0:01:54.4]} 27. Qd2 {[%clk 0:01:29.1]} 27... Bxb2 {[%clk
0:01:22]} 28. Qxh6 {[%clk 0:01:29.3]} 28... Rf6 {[%clk 0:01:15.5]} 29. Nd4
{[%clk 0:01:25.7]} 29... Qd5 {[%clk 0:00:29.4]} 30. Ne2 {[%clk 0:01:16.4]} 30...
Qf7 {[%clk 0:00:30]} 31. Nf4 {[%clk 0:01:14.9]} 31... Qh7 {[%clk 0:00:31.2]} 32.
Qg5 {[%clk 0:01:07.8]} 32... Be5 {[%clk 0:00:32.2]} 33. Kg2 {[%clk 0:01:06.8]}
33... Rc8 {[%clk 0:00:28.8]} 34. Rf2 {[%clk 0:01:07]} 34... Rc4 {[%clk 0:00:27]}
35. Nd5 {[%clk 0:01:06.8]} 35... Rf7 {[%clk 0:00:28.4]} 36. f4 {[%clk
0:01:06.2]} 36... Bg7 {[%clk 0:00:26.5]} 37. Ne7+ {[%clk 0:01:01.4]} 37... Rxe7
{[%clk 0:00:26.4]} 38. Qxe7 {[%clk 0:01:02.5]} 38... Re4 {[%clk 0:00:23.9]} 39.
Qd8+ {[%clk 0:00:52.4]} 39... Bf8 {[%clk 0:00:25.1]} 40. Rd3 {[%clk 0:00:50.7]}
40... Qf7 {[%clk 0:00:22.4]} 41. Rg3 {[%clk 0:00:49]} 41... Re6 {[%clk
0:00:16.7]} 42. Qa5 {[%clk 0:00:43.4]} 42... Be7 {[%clk 0:00:15.4]} 43. Rd2
{[%clk 0:00:36.4]} 43... Re4 {[%clk 0:00:11.7]} 44. Rf3 {[%clk 0:00:32.3]} 44...
Qc4 {[%clk 0:00:12.8]} 45. Qd5+ {[%clk 0:00:32.6]} 45... Qxd5 {[%clk 0:00:14.2]}
46. Rxd5 {[%clk 0:00:33.9]} 46... Kf7 {[%clk 0:00:16]} 47. Ra5 {[%clk
0:00:32.5]} 47... Ke6 {[%clk 0:00:17.9]} 48. Rxa6 {[%clk 0:00:33.6]} 48... Bf6
{[%clk 0:00:19.4]} 49. Rb6 {[%clk 0:00:33.6]} 49... Bc3 {[%clk 0:00:20.5]} 50.
Rd3 {[%clk 0:00:31.8]} 50... Bd4 {[%clk 0:00:20.7]} 51. Rxb4 {[%clk 0:00:31.1]}
51... Re2+ {[%clk 0:00:22.4]} 52. Kf3 {[%clk 0:00:26.3]} 52... Rf2+ {[%clk
0:00:23.6]} 53. Kg3 {[%clk 0:00:27.5]} 53... Bc5 {[%clk 0:00:25.5]} 54. Rc4
{[%clk 0:00:26.2]} 54... Rf1 {[%clk 0:00:26.9]} 55. a4 {[%clk 0:00:25]} 55...
Ra1 {[%clk 0:00:24.9]} 56. Rb3 {[%clk 0:00:25.4]} 56... Kd5 {[%clk 0:00:25.8]}
57. Rbc3 {[%clk 0:00:22.8]} 57... Bd4 {[%clk 0:00:25.4]} 58. Rxd4+ {[%clk
0:00:21.2]} 58... Kxd4 {[%clk 0:00:27.3]} 59. Rd3+ {[%clk 0:00:22.7]} 59... Kc5
{[%clk 0:00:28.3]} 60. Kh4 {[%clk 0:00:21.2]} 60... Rxa4 {[%clk 0:00:28.8]} 61.
Kg5 {[%clk 0:00:22.8]} 61... Rc4 {[%clk 0:00:26.8]} 62. c3 {[%clk 0:00:23.7]}
62... Re4 {[%clk 0:00:28.3]} 63. Rf3 {[%clk 0:00:24.1]} 63... Re6 {[%clk
0:00:28.7]} 64. h4 {[%clk 0:00:25]} 64... d5 {[%clk 0:00:30.2]} 65. h5 {[%clk
0:00:24.9]} 65... gxh5 {[%clk 0:00:32.1]} 66. Kxh5 {[%clk 0:00:26.6]} 66... Rf6
{[%clk 0:00:27.2]} 67. Kg5 {[%clk 0:00:27.9]} 67... Rf8 {[%clk 0:00:28.5]} 68.
Re3 {[%clk 0:00:27.9]} 68... Kc4 {[%clk 0:00:29.7]} 69. Re5 {[%clk 0:00:27.9]}
69... Rd8 {[%clk 0:00:26]} 70. Kxf5 {[%clk 0:00:26.2]} 70... Kxc3 {[%clk
0:00:27]} 71. Re1 {[%clk 0:00:23.3]} 71... d4 {[%clk 0:00:28.2]} 72. Kg6 {[%clk
0:00:23.4]} 72... d3 {[%clk 0:00:29.5]} 73. f5 {[%clk 0:00:24.5]} 73... d2
{[%clk 0:00:30.8]} 74. Rf1 {[%clk 0:00:20.2]} 74... d1=Q {[%clk 0:00:31.3]} 75.
Rxd1 {[%clk 0:00:21.5]} 75... Rxd1 {[%clk 0:00:33.2]} 76. f6 {[%clk 0:00:23.3]}
76... Rg1+ {[%clk 0:00:34.7]} 77. Kh7 {[%clk 0:00:24.5]} 77... Rf1 {[%clk
0:00:36.4]} 78. Kg7 {[%clk 0:00:25.5]} 78... Rxf6 {[%clk 0:00:37.5]} 79. Kxf6
{[%clk 0:00:26.6]} 1/2-1/2

[Event "*** Monthly 3|2 Blitz Masters"]
[Site "Chess.com"]
[Date "2014.11.25"]
[Round "4"]
[White "David_Klein"]
[Black "jcibarra"]
[Result "0-1"]
[WhiteElo "2358"]
[BlackElo "2460"]
[TimeControl "180+2"]
[EndTime "11:48:07 PST"]
[Termination "jcibarra won by resignation"]

1. e4 {[%clk 0:03:00]} 1... e5 {[%clk 0:02:57.7]} 2. Nf3 {[%clk 0:03:00.5]} 2...
d6 {[%clk 0:02:58.2]} 3. d4 {[%clk 0:03:01.3]} 3... exd4 {[%clk 0:02:59.7]} 4.
Nxd4 {[%clk 0:03:03.2]} 4... Nf6 {[%clk 0:03:00.6]} 5. Nc3 {[%clk 0:03:04.9]}
5... Be7 {[%clk 0:03:01.6]} 6. g3 {[%clk 0:03:06.4]} 6... d5 {[%clk 0:03:01.1]}
7. e5 {[%clk 0:03:00.8]} 7... Ng4 {[%clk 0:03:01.5]} 8. Bg2 {[%clk 0:03:01.4]}
8... O-O {[%clk 0:02:56.9]} 9. Nxd5 {[%clk 0:02:55.6]} 9... Bc5 {[%clk
0:02:52.4]} 10. c3 {[%clk 0:02:40.9]} 10... Nxe5 {[%clk 0:02:52.5]} 11. O-O
{[%clk 0:02:39.7]} 11... Bg4 {[%clk 0:02:53]} 12. Qb3 {[%clk 0:02:38.3]} 12...
Nbc6 {[%clk 0:02:53.9]} 13. Nxc6 {[%clk 0:02:06.2]} 13... bxc6 {[%clk
0:02:53.1]} 14. Ne3 {[%clk 0:02:07.5]} 14... Be2 {[%clk 0:02:32]} 15. Re1 {[%clk
0:01:56.1]} 15... Nf3+ {[%clk 0:02:21.9]} 16. Bxf3 {[%clk 0:01:55.9]} 16... Bxf3
{[%clk 0:02:23.5]} 17. Qc4 {[%clk 0:01:57.5]} 17... Bxe3 {[%clk 0:01:47.8]} 18.
Bxe3 {[%clk 0:01:57.1]} 18... Re8 {[%clk 0:01:47.1]} 19. Qf4 {[%clk 0:01:49.3]}
19... Qd5 {[%clk 0:01:47]} 20. Bd4 {[%clk 0:01:29.5]} 20... Qh5 {[%clk
0:01:37.4]} 21. Re5 {[%clk 0:01:21.3]} 21... Rxe5 {[%clk 0:01:29.5]} 22. Qxe5
{[%clk 0:01:23.2]} 22... Qg4 {[%clk 0:01:04]} 23. Re1 {[%clk 0:01:23.5]} 23...
f6 {[%clk 0:00:50.4]} 24. Qe6+ {[%clk 0:01:12.3]} 24... Qxe6 {[%clk 0:00:50.4]}
25. Rxe6 {[%clk 0:01:14.2]} 25... Kf7 {[%clk 0:00:42.6]} 26. Re3 {[%clk
0:01:14.9]} 26... Bd5 {[%clk 0:00:43.5]} 27. b3 {[%clk 0:01:16.2]} 27... a5
{[%clk 0:00:43.9]} 28. c4 {[%clk 0:01:17.3]} 28... Be6 {[%clk 0:00:44.3]} 29. a4
{[%clk 0:01:15.9]} 29... Bh3 {[%clk 0:00:38.7]} 30. Bc3 {[%clk 0:01:12.4]} 30...
h5 {[%clk 0:00:36]} 31. f3 {[%clk 0:01:11.8]} 31... g5 {[%clk 0:00:32.4]} 32.
Kf2 {[%clk 0:01:12.8]} 32... Bf5 {[%clk 0:00:32.8]} 33. Ke1 {[%clk 0:01:12.3]}
33... Bc2 {[%clk 0:00:33.8]} 34. Bd2 {[%clk 0:01:10]} 34... Rb8 {[%clk
0:00:28.4]} 35. Bxa5 {[%clk 0:01:06.4]} 35... Bxb3 {[%clk 0:00:29]} 36. Bxc7
{[%clk 0:01:07.3]} 36... Rb7 {[%clk 0:00:30.5]} 37. Bd6 {[%clk 0:01:00.6]} 37...
Bxc4 {[%clk 0:00:30.2]} 38. a5 {[%clk 0:00:59.9]} 38... Rb2 {[%clk 0:00:31]} 39.
Re7+ {[%clk 0:00:58.2]} 39... Kg6 {[%clk 0:00:31.5]} 40. h4 {[%clk 0:00:58.8]}
40... Ra2 {[%clk 0:00:27.7]} 41. Bc7 {[%clk 0:00:57.8]} 41... Bd5 {[%clk
0:00:24.4]} 42. hxg5 {[%clk 0:00:57.8]} 42... fxg5 {[%clk 0:00:25.6]} 43. f4
{[%clk 0:00:58.2]} 43... g4 {[%clk 0:00:26.7]} 44. Re5 {[%clk 0:00:54.3]} 44...
Ra3 {[%clk 0:00:23.9]} 45. Rg5+ {[%clk 0:00:54.9]} 45... Kh6 {[%clk 0:00:23.5]}
46. Bd6 {[%clk 0:00:53.8]} 46... Rxg3 {[%clk 0:00:22.7]} 47. Bf8+ {[%clk
0:00:54.9]} 47... Kh7 {[%clk 0:00:24.2]} 48. Rxh5+ {[%clk 0:00:55.8]} 48... Kg8
{[%clk 0:00:25.6]} 49. Bd6 {[%clk 0:00:55.7]} 49... Re3+ {[%clk 0:00:21.4]} 50.
Kf2 {[%clk 0:00:56]} 50... Rf3+ {[%clk 0:00:22.7]} 51. Ke2 {[%clk 0:00:57.4]}
51... Rb3 {[%clk 0:00:22]} 52. Rg5+ {[%clk 0:00:58.1]} 52... Kf7 {[%clk
0:00:23.6]} 53. Kf2 {[%clk 0:00:58.2]} 53... Rf3+ {[%clk 0:00:22.9]} 54. Ke2
{[%clk 0:00:59.4]} 54... g3 {[%clk 0:00:23.9]} 55. Rxd5 {[%clk 0:00:56.1]} 55...
Rf2+ {[%clk 0:00:24.1]} 56. Ke1 {[%clk 0:00:56.7]} 56... cxd5 {[%clk 0:00:21.8]}
57. f5 {[%clk 0:00:55]} 57... Ra2 {[%clk 0:00:17.6]} 58. Bxg3 {[%clk 0:00:55.5]}
58... Rxa5 {[%clk 0:00:18.2]} 59. Be5 {[%clk 0:00:56.8]} 59... Ra4 {[%clk
0:00:18.9]} 60. Kd2 {[%clk 0:00:57.3]} 60... Re4 {[%clk 0:00:20.4]} 61. Bc3
{[%clk 0:00:57.5]} 61... Ke7 {[%clk 0:00:17.8]} 62. Kd3 {[%clk 0:00:58]} 62...
Kd6 {[%clk 0:00:17.5]} 63. Bd4 {[%clk 0:00:59.5]} 63... Rf4 {[%clk 0:00:18]} 64.
f6 {[%clk 0:01:00.2]} 64... Ke6 {[%clk 0:00:19.1]} 65. Ke3 {[%clk 0:01:01.4]}
65... Re4+ {[%clk 0:00:20.4]} 66. Kd3 {[%clk 0:01:02.8]} 66... Rh4 {[%clk
0:00:21.5]} 67. Ke3 {[%clk 0:01:03.7]} 67... Rh7 {[%clk 0:00:21.8]} 68. Kd3
{[%clk 0:01:04.9]} 68... Kf5 {[%clk 0:00:22.7]} 69. Ke3 {[%clk 0:01:06.4]} 69...
Rh3+ {[%clk 0:00:23.1]} 70. Kd2 {[%clk 0:01:07.6]} 70... Ke4 {[%clk 0:00:24.5]}
71. Bc5 {[%clk 0:01:08.5]} 71... Rf3 {[%clk 0:00:26]} 72. Be7 {[%clk 0:01:08.4]}
72... d4 {[%clk 0:00:27.1]} 73. Ke2 {[%clk 0:01:09.9]} 73... d3+ {[%clk
0:00:28.1]} 74. Kd2 {[%clk 0:01:11.4]} 74... Rf2+ {[%clk 0:00:28.8]} 75. Kd1
{[%clk 0:01:12.8]} 75... Rf5 {[%clk 0:00:24.6]} 76. Bd8 {[%clk 0:01:13.4]} 76...
Kd4 {[%clk 0:00:24]} 77. Kd2 {[%clk 0:01:11.7]} 77... Rf2+ {[%clk 0:00:24.4]}
78. Kd1 {[%clk 0:01:13.1]} 78... Kc3 {[%clk 0:00:23.9]} 79. Ba5+ {[%clk
0:01:14.1]} 79... Kc4 {[%clk 0:00:25.1]} 80. Bd8 {[%clk 0:01:14.6]} 80... d2
{[%clk 0:00:23.7]} 81. Kc2 {[%clk 0:00:49]} 81... Rf5 {[%clk 0:00:22.3]} 82.
Kxd2 {[%clk 0:00:31.7]} 82... Rd5+ {[%clk 0:00:22.4]} 83. Ke3 {[%clk 0:00:33.3]}
83... Rxd8 {[%clk 0:00:20.9]} 84. Ke4 {[%clk 0:00:34.5]} 84... Re8+ {[%clk
0:00:21.4]} 85. Kf5 {[%clk 0:00:35.9]} 85... Kd5 {[%clk 0:00:22.7]} 86. f7
{[%clk 0:00:36.2]} 86... Rf8 {[%clk 0:00:23.8]} 87. Kf6 {[%clk 0:00:37.3]} 87...
Kd6 {[%clk 0:00:25.3]} 88. Kg6 {[%clk 0:00:36.5]} 88... Ke7 {[%clk 0:00:25.9]}
0-1

[Event "*** Monthly 3|2 Blitz Masters"]
[Site "Chess.com"]
[Date "2014.11.25"]
[Round "5"]
[White "Philofive"]
[Black "jup1978"]
[Result "1-0"]
[WhiteElo "2218"]
[BlackElo "2111"]
[TimeControl "180+2"]
[EndTime "11:54:09 PST"]
[Termination "Philofive won by resignation"]

1. d4 {[%clk 0:02:54.4]} 1... d5 {[%clk 0:02:58.1]} 2. c4 {[%clk 0:02:55]} 2...
c6 {[%clk 0:02:59.1]} 3. Nf3 {[%clk 0:02:55.1]} 3... Nf6 {[%clk 0:03:00]} 4. e3
{[%clk 0:02:56.3]} 4... Bg4 {[%clk 0:02:59.7]} 5. Qb3 {[%clk 0:02:53]} 5... Qb6
{[%clk 0:02:53.3]} 6. Nc3 {[%clk 0:02:53.2]} 6... e6 {[%clk 0:02:53.8]} 7. Nh4
{[%clk 0:02:44.5]} 7... Nbd7 {[%clk 0:02:45.8]} 8. h3 {[%clk 0:02:45.2]} 8...
Bh5 {[%clk 0:02:44.9]} 9. Bd2 {[%clk 0:02:44.2]} 9... Be7 {[%clk 0:02:36.7]} 10.
g4 {[%clk 0:02:44.6]} 10... Bg6 {[%clk 0:02:37.1]} 11. Nxg6 {[%clk 0:02:20]}
11... hxg6 {[%clk 0:02:37.3]} 12. Bg2 {[%clk 0:02:20.7]} 12... Qxb3 {[%clk
0:02:34.4]} 13. axb3 {[%clk 0:02:21.2]} 13... O-O {[%clk 0:02:34.7]} 14. f4
{[%clk 0:02:08.7]} 14... Nh7 {[%clk 0:02:26.7]} 15. g5 {[%clk 0:02:08.4]} 15...
Rfd8 {[%clk 0:02:19.4]} 16. Ke2 {[%clk 0:02:05.2]} 16... f6 {[%clk 0:02:15.8]}
17. h4 {[%clk 0:02:04.6]} 17... Kf7 {[%clk 0:02:16.9]} 18. Bf3 {[%clk
0:01:59.3]} 18... dxc4 {[%clk 0:02:12.1]} 19. bxc4 {[%clk 0:01:59.5]} 19... e5
{[%clk 0:02:13.4]} 20. d5 {[%clk 0:01:48.3]} 20... exf4 {[%clk 0:02:13.1]} 21.
exf4 {[%clk 0:01:48.4]} 21... c5 {[%clk 0:02:02.4]} 22. h5 {[%clk 0:01:37.2]}
22... Nhf8 {[%clk 0:02:00.2]} 23. hxg6+ {[%clk 0:01:35.4]} 23... Nxg6 {[%clk
0:02:00.2]} 24. f5 {[%clk 0:01:25.9]} 24... Nge5 {[%clk 0:01:57.7]} 25. g6+
{[%clk 0:01:26.8]} 25... Ke8 {[%clk 0:01:58.9]} 26. Nb5 {[%clk 0:01:14.3]} 26...
a6 {[%clk 0:01:56.1]} 27. Nc7+ {[%clk 0:01:13.8]} 1-0

[Event "*** Monthly 3|2 Blitz Masters"]
[Site "Chess.com"]
[Date "2014.11.25"]
[Round "5"]
[White "bugsbunny444"]
[Black "Quinten94"]
[Result "0-1"]
[WhiteElo "2299"]
[BlackElo "2150"]
[TimeControl "180+2"]
[EndTime "11:54:54 PST"]
[Termination "Quinten94 won by resignation"]

1. Nf3 {[%clk 0:03:00]} 1... d5 {[%clk 0:02:58.9]} 2. c4 {[%clk 0:03:01.2]} 2...
d4 {[%clk 0:02:59.9]} 3. g3 {[%clk 0:03:02.1]} 3... Nc6 {[%clk 0:03:00]} 4. Bg2
{[%clk 0:03:02.7]} 4... e5 {[%clk 0:03:01.7]} 5. O-O {[%clk 0:03:04.4]} 5... e4
{[%clk 0:03:02.5]} 6. Ne1 {[%clk 0:03:03.3]} 6... h5 {[%clk 0:03:04.2]} 7. Bxe4
{[%clk 0:02:37.7]} 7... h4 {[%clk 0:03:05.2]} 8. d3 {[%clk 0:02:31.5]} 8... hxg3
{[%clk 0:02:59.8]} 9. fxg3 {[%clk 0:02:30]} 9... Bh3 {[%clk 0:02:53.1]} 10. Ng2
{[%clk 0:02:05.8]} 10... Qd7 {[%clk 0:02:50.4]} 11. Bg5 {[%clk 0:01:55.6]} 11...
f6 {[%clk 0:02:30.4]} 12. Bg6+ {[%clk 0:01:19.7]} 12... Kd8 {[%clk 0:02:29.7]}
13. Be4 {[%clk 0:01:18]} 13... Nge7 {[%clk 0:02:20.2]} 14. Bf4 {[%clk 0:01:13]}
14... g5 {[%clk 0:02:14.8]} 15. Bd2 {[%clk 0:01:05.8]} 15... f5 {[%clk
0:02:13.3]} 16. Bxc6 {[%clk 0:00:43]} 16... Qxc6 {[%clk 0:02:12.8]} 17. Rf2
{[%clk 0:00:44.6]} 17... f4 {[%clk 0:02:06]} 18. Qf1 {[%clk 0:00:35.4]} 18...
Nf5 {[%clk 0:02:01.3]} 19. Bxf4 {[%clk 0:00:31.7]} 19... gxf4 {[%clk 0:01:57.4]}
20. Rxf4 {[%clk 0:00:33.2]} 20... Bxg2 {[%clk 0:01:49.8]} 21. Qxg2 {[%clk
0:00:32.2]} 21... Qxg2+ {[%clk 0:01:51]} 22. Kxg2 {[%clk 0:00:33.4]} 22... Ne3+
{[%clk 0:01:52.7]} 23. Kf3 {[%clk 0:00:22.2]} 23... Nc2 {[%clk 0:01:54]} 24. Na3
{[%clk 0:00:18.2]} 24... Nxa1 {[%clk 0:01:54.9]} 25. Rxd4+ {[%clk 0:00:19]}
25... Kc8 {[%clk 0:01:55.2]} 0-1